Workbook

Sheet LOS Target Setting
B1: DIRECTIONS | C1: Note: The EXCEL Solver Add-in must be installed.
B2: To solve for ATTAINABLE LOS TARGETS: Use the button on the right to reset the input table below. Enter the available budget for each goal, the baseline and maximum acceptable deficiency rates for each feature. Use the solve goal buttons to find attainable targets. Repeat for all five goals.
B3: To solve for COST TO ACHIEVE DESIRED LOS TARGETS: Use the button on the right to reset the input table below. Enter the baseline deficiency rates. Set the maximum acceptable deficiency rates to desired targets. Use the solve goal buttons to find costs. Repeat for all five goals.
B4: Goal | F4: Deficiency Rate
F5: Baseline | G5: Maximum Acceptable | H5: Target
B7: Critical Safety | C7: Available Budget for Critical Safety | E7: 0
C8: Baseline LOS Grade | E8: ='Critical Safety'!$H$5 -> C | I8: LOS Grade | K8: Target Budget Allocation
C9: Estimated Cost | E9: =MROUND('Critical Safety'!$H$3,1000) -> 43218000 | I9: Baseline | J9: Target
C10: Target LOS Grade | E10: ='Critical Safety'!$H$7 -> C
C11: Features | D11: Emergency repair of regulator / warning signs | F11: 3 | G11: 5 | H11: ='Critical Safety'!D24 -> 5 | I11: =IF(F11<='LOS and Grade Scales'!$D$6,"A",IF(F11<='LOS and Grade Scales'!$F$6, "B", IF(F11<='LOS and Grade Scales'!$H$6,"C",IF(F11<='LOS and Grade Scales'!$J$6,"D","F")))) -> B | J11: =IF(H11<='LOS and Grade Scales'!$D$6,"A",IF(H11<='LOS and Grade Scales'!$F$6, "B", IF(H11<='LOS and Grade Scales'!$H$6,"C",IF(H11<='LOS and Grade Scales'!$J$6,"D","F")))) -> B | K11: =MROUND('Critical Safety'!F24,1000) -> 818000
D12: Hazardous debris | F12: 7 | G12: 9 | H12: ='Critical Safety'!D25 -> 9 | I12: =IF(F12<='LOS and Grade Scales'!$D$6,"A",IF(F12<='LOS and Grade Scales'!$F$6, "B", IF(F12<='LOS and Grade Scales'!$H$6,"C",IF(F12<='LOS and Grade Scales'!$J$6,"D","F")))) -> C | J12: =IF(H12<='LOS and Grade Scales'!$D$6,"A",IF(H12<='LOS and Grade Scales'!$F$6, "B", IF(H12<='LOS and Grade Scales'!$H$6,"C",IF(H12<='LOS and Grade Scales'!$J$6,"D","F")))) -> C | K12: =MROUND('Critical Safety'!F25,1000) -> 16208000
D13: Protective barriers | F13: 5 | G13: 5 | H13: ='Critical Safety'!D26 -> 5 | I13: =IF(F13<='LOS and Grade Scales'!$D$6,"A",IF(F13<='LOS and Grade Scales'!$F$6, "B", IF(F13<='LOS and Grade Scales'!$H$6,"C",IF(F13<='LOS and Grade Scales'!$J$6,"D","F")))) -> B | J13: =IF(H13<='LOS and Grade Scales'!$D$6,"A",IF(H13<='LOS and Grade Scales'!$F$6, "B", IF(H13<='LOS and Grade Scales'!$H$6,"C",IF(H13<='LOS and Grade Scales'!$J$6,"D","F")))) -> B | K13: =MROUND('Critical Safety'!F26,1000) -> 8486000
D14: Centerline markings | F14: 6 | G14: 6 | H14: ='Critical Safety'!D27 -> 6 | I14: =IF(F14<='LOS and Grade Scales'!$D$6,"A",IF(F14<='LOS and Grade Scales'!$F$6, "B", IF(F14<='LOS and Grade Scales'!$H$6,"C",IF(F14<='LOS and Grade Scales'!$J$6,"D","F")))) -> C | J14: =IF(H14<='LOS and Grade Scales'!$D$6,"A",IF(H14<='LOS and Grade Scales'!$F$6, "B", IF(H14<='LOS and Grade Scales'!$H$6,"C",IF(H14<='LOS and Grade Scales'!$J$6,"D","F")))) -> C | K14: =MROUND('Critical Safety'!F27,1000) -> 2130000
B15: Priority Weight: | D15: Edgeline markings | F15: 7 | G15: 8 | H15: ='Critical Safety'!D28 -> 8 | I15: =IF(F15<='LOS and Grade Scales'!$D$6,"A",IF(F15<='LOS and Grade Scales'!$F$6, "B", IF(F15<='LOS and Grade Scales'!$H$6,"C",IF(F15<='LOS and Grade Scales'!$J$6,"D","F")))) -> C | J15: =IF(H15<='LOS and Grade Scales'!$D$6,"A",IF(H15<='LOS and Grade Scales'!$F$6, "B", IF(H15<='LOS and Grade Scales'!$H$6,"C",IF(H15<='LOS and Grade Scales'!$J$6,"D","F")))) -> C | K15: =MROUND('Critical Safety'!F28,1000) -> 5631000
B16: 0.51 | D16: Unpaved shoulder drop-off / buildup | F16: 37 | G16: 25 | H16: ='Critical Safety'!D29 -> 25 | I16: =IF(F16<='LOS and Grade Scales'!$D$6,"A",IF(F16<='LOS and Grade Scales'!$F$6, "B", IF(F16<='LOS and Grade Scales'!$H$6,"C",IF(F16<='LOS and Grade Scales'!$J$6,"D","F")))) -> F | J16: =IF(H16<='LOS and Grade Scales'!$D$6,"A",IF(H16<='LOS and Grade Scales'!$F$6, "B", IF(H16<='LOS and Grade Scales'!$H$6,"C",IF(H16<='LOS and Grade Scales'!$J$6,"D","F")))) -> F | K16: =MROUND('Critical Safety'!F29,1000) -> 2640000
D17: Paved shoulder drop off / build up | F17: 3 | G17: 5 | H17: ='Critical Safety'!D30 -> 5 | I17: =IF(F17<='LOS and Grade Scales'!$D$6,"A",IF(F17<='LOS and Grade Scales'!$F$6, "B", IF(F17<='LOS and Grade Scales'!$H$6,"C",IF(F17<='LOS and Grade Scales'!$J$6,"D","F")))) -> B | J17: =IF(H17<='LOS and Grade Scales'!$D$6,"A",IF(H17<='LOS and Grade Scales'!$F$6, "B", IF(H17<='LOS and Grade Scales'!$H$6,"C",IF(H17<='LOS and Grade Scales'!$J$6,"D","F")))) -> B | K17: =MROUND('Critical Safety'!F30,1000) -> 7305000
B18: Safety / Mobility | C18: Available Budget for Safety / Mobility | E18: 0
C19: Baseline LOS Grade | E19: ='Safety-Mobility'!$H$5 -> B
C20: Estimated Cost | E20: =MROUND('Safety-Mobility'!$H$3,1000) -> 31184000
C21: Target LOS Grade | E21: ='Safety-Mobility'!$H$7 -> B
C22: Features | D22: Woody vegetation control for vision | F22: 1 | G22: 5 | H22: ='Safety-Mobility'!D27 -> 5 | I22: =IF(F22<='LOS and Grade Scales'!$D$7,"A",IF(F22<='LOS and Grade Scales'!$F$7, "B", IF(F22<='LOS and Grade Scales'!$H$7,"C",IF(F22<='LOS and Grade Scales'!$J$7,"D","F")))) -> A | J22: =IF(H22<='LOS and Grade Scales'!$D$7,"A",IF(H22<='LOS and Grade Scales'!$F$7, "B", IF(H22<='LOS and Grade Scales'!$H$7,"C",IF(H22<='LOS and Grade Scales'!$J$7,"D","F")))) -> B | K22: =MROUND('Safety-Mobility'!F27,1000) -> 2964000
D23: Mowing for vision | F23: 1 | G23: 5 | H23: ='Safety-Mobility'!D28 -> 5 | I23: =IF(F23<='LOS and Grade Scales'!$D$7,"A",IF(F23<='LOS and Grade Scales'!$F$7, "B", IF(F23<='LOS and Grade Scales'!$H$7,"C",IF(F23<='LOS and Grade Scales'!$J$7,"D","F")))) -> A | J23: =IF(H23<='LOS and Grade Scales'!$D$7,"A",IF(H23<='LOS and Grade Scales'!$F$7, "B", IF(H23<='LOS and Grade Scales'!$H$7,"C",IF(H23<='LOS and Grade Scales'!$J$7,"D","F")))) -> B | K23: =MROUND('Safety-Mobility'!F28,1000) -> 3132000
D24: Special pavement markings | F24: 10 | G24: 5 | H24: ='Safety-Mobility'!D29 -> 5 | I24: =IF(F24<='LOS and Grade Scales'!$D$7,"A",IF(F24<='LOS and Grade Scales'!$F$7, "B", IF(F24<='LOS and Grade Scales'!$H$7,"C",IF(F24<='LOS and Grade Scales'!$J$7,"D","F")))) -> C | J24: =IF(H24<='LOS and Grade Scales'!$D$7,"A",IF(H24<='LOS and Grade Scales'!$F$7, "B", IF(H24<='LOS and Grade Scales'!$H$7,"C",IF(H24<='LOS and Grade Scales'!$J$7,"D","F")))) -> B | K24: =MROUND('Safety-Mobility'!F29,1000) -> 4562000
D25: Woody vegetation (clear zone) | F25: 2 | G25: 5 | H25: ='Safety-Mobility'!D30 -> 5 | I25: =IF(F25<='LOS and Grade Scales'!$D$7,"A",IF(F25<='LOS and Grade Scales'!$F$7, "B", IF(F25<='LOS and Grade Scales'!$H$7,"C",IF(F25<='LOS and Grade Scales'!$J$7,"D","F")))) -> A | J25: =IF(H25<='LOS and Grade Scales'!$D$7,"A",IF(H25<='LOS and Grade Scales'!$F$7, "B", IF(H25<='LOS and Grade Scales'!$H$7,"C",IF(H25<='LOS and Grade Scales'!$J$7,"D","F")))) -> B | K25: =MROUND('Safety-Mobility'!F30,1000) -> 4184000
D26: Culverts | F26: 22 | G26: 15 | H26: ='Safety-Mobility'!D31 -> 15 | I26: =IF(F26<='LOS and Grade Scales'!$D$7,"A",IF(F26<='LOS and Grade Scales'!$F$7, "B", IF(F26<='LOS and Grade Scales'!$H$7,"C",IF(F26<='LOS and Grade Scales'!$J$7,"D","F")))) -> D | J26: =IF(H26<='LOS and Grade Scales'!$D$7,"A",IF(H26<='LOS and Grade Scales'!$F$7, "B", IF(H26<='LOS and Grade Scales'!$H$7,"C",IF(H26<='LOS and Grade Scales'!$J$7,"D","F")))) -> C | K26: =MROUND('Safety-Mobility'!F31,1000) -> 1393000
D27: Storm sewer | F27: 17 | G27: 15 | H27: ='Safety-Mobility'!D32 -> 15 | I27: =IF(F27<='LOS and Grade Scales'!$D$7,"A",IF(F27<='LOS and Grade Scales'!$F$7, "B", IF(F27<='LOS and Grade Scales'!$H$7,"C",IF(F27<='LOS and Grade Scales'!$J$7,"D","F")))) -> C | J27: =IF(H27<='LOS and Grade Scales'!$D$7,"A",IF(H27<='LOS and Grade Scales'!$F$7, "B", IF(H27<='LOS and Grade Scales'!$H$7,"C",IF(H27<='LOS and Grade Scales'!$J$7,"D","F")))) -> C | K27: =MROUND('Safety-Mobility'!F32,1000) -> 1238000
D28: Cross slope on unpaved shoulders | F28: 27 | G28: 15 | H28: ='Safety-Mobility'!D33 -> 15 | I28: =IF(F28<='LOS and Grade Scales'!$D$7,"A",IF(F28<='LOS and Grade Scales'!$F$7, "B", IF(F28<='LOS and Grade Scales'!$H$7,"C",IF(F28<='LOS and Grade Scales'!$J$7,"D","F")))) -> D | J28: =IF(H28<='LOS and Grade Scales'!$D$7,"A",IF(H28<='LOS and Grade Scales'!$F$7, "B", IF(H28<='LOS and Grade Scales'!$H$7,"C",IF(H28<='LOS and Grade Scales'!$J$7,"D","F")))) -> C | K28: =MROUND('Safety-Mobility'!F33,1000) -> 8792000
B29: Priority Weight: | D29: Delineators | F29: 25 | G29: 15 | H29: ='Safety-Mobility'!D34 -> 15 | I29: =IF(F29<='LOS and Grade Scales'!$D$7,"A",IF(F29<='LOS and Grade Scales'!$F$7, "B", IF(F29<='LOS and Grade Scales'!$H$7,"C",IF(F29<='LOS and Grade Scales'!$J$7,"D","F")))) -> D | J29: =IF(H29<='LOS and Grade Scales'!$D$7,"A",IF(H29<='LOS and Grade Scales'!$F$7, "B", IF(H29<='LOS and Grade Scales'!$H$7,"C",IF(H29<='LOS and Grade Scales'!$J$7,"D","F")))) -> C | K29: =MROUND('Safety-Mobility'!F34,1000) -> 1823000
B30: 0.28 | D30: Routine replacement of regulatory / warning signs | F30: 15 | G30: 10 | H30: ='Safety-Mobility'!D35 -> 10 | I30: =IF(F30<='LOS and Grade Scales'!$D$7,"A",IF(F30<='LOS and Grade Scales'!$F$7, "B", IF(F30<='LOS and Grade Scales'!$H$7,"C",IF(F30<='LOS and Grade Scales'!$J$7,"D","F")))) -> C | J30: =IF(H30<='LOS and Grade Scales'!$D$7,"A",IF(H30<='LOS and Grade Scales'!$F$7, "B", IF(H30<='LOS and Grade Scales'!$H$7,"C",IF(H30<='LOS and Grade Scales'!$J$7,"D","F")))) -> C | K30: =MROUND('Safety-Mobility'!F35,1000) -> 3392000
D31: Fences | F31: 1 | G31: 5 | H31: ='Safety-Mobility'!D36 -> 4.666666667 | I31: =IF(F31<='LOS and Grade Scales'!$D$7,"A",IF(F31<='LOS and Grade Scales'!$F$7, "B", IF(F31<='LOS and Grade Scales'!$H$7,"C",IF(F31<='LOS and Grade Scales'!$J$7,"D","F")))) -> A | J31: =IF(H31<='LOS and Grade Scales'!$D$7,"A",IF(H31<='LOS and Grade Scales'!$F$7, "B", IF(H31<='LOS and Grade Scales'!$H$7,"C",IF(H31<='LOS and Grade Scales'!$J$7,"D","F")))) -> B | K31: =MROUND('Safety-Mobility'!F36,1000) -> 
B32: Stewardship | C32: Available Budget for Stewardship | E32: 0
C33: Baseline LOS Grade | E33: =Stewardship!$H$5 -> B
C34: Estimated Cost | E34: =MROUND(Stewardship!$H$3,1000) -> 13996000
C35: Target LOS Grade | E35: =Stewardship!$H$7 -> A
C36: Features | D36: Ditches | F36: 3 | G36: 5 | H36: =Stewardship!D23 -> 5 | I36: =IF(F36<='LOS and Grade Scales'!$D$8,"A",IF(F36<='LOS and Grade Scales'!$F$8, "B", IF(F36<='LOS and Grade Scales'!$H$8,"C",IF(F36<='LOS and Grade Scales'!$J$8,"D","F")))) -> A | J36: =IF(H36<='LOS and Grade Scales'!$D$8,"A",IF(H36<='LOS and Grade Scales'!$F$8, "B", IF(H36<='LOS and Grade Scales'!$H$8,"C",IF(H36<='LOS and Grade Scales'!$J$8,"D","F")))) -> A | K36: =MROUND(Stewardship!F23,1000) -> 4377000
D37: Curb and gutter | F37: 4 | G37: 5 | H37: =Stewardship!D24 -> 0 | I37: =IF(F37<='LOS and Grade Scales'!$D$8,"A",IF(F37<='LOS and Grade Scales'!$F$8, "B", IF(F37<='LOS and Grade Scales'!$H$8,"C",IF(F37<='LOS and Grade Scales'!$J$8,"D","F")))) -> A | J37: =IF(H37<='LOS and Grade Scales'!$D$8,"A",IF(H37<='LOS and Grade Scales'!$F$8, "B", IF(H37<='LOS and Grade Scales'!$H$8,"C",IF(H37<='LOS and Grade Scales'!$J$8,"D","F")))) -> A | K37: =MROUND(Stewardship!F24,1000) -> 259000
D38: Flumes | F38: 39 | G38: 25 | H38: =Stewardship!D25 -> 0 | I38: =IF(F38<='LOS and Grade Scales'!$D$8,"A",IF(F38<='LOS and Grade Scales'!$F$8, "B", IF(F38<='LOS and Grade Scales'!$H$8,"C",IF(F38<='LOS and Grade Scales'!$J$8,"D","F")))) -> D | J38: =IF(H38<='LOS and Grade Scales'!$D$8,"A",IF(H38<='LOS and Grade Scales'!$F$8, "B", IF(H38<='LOS and Grade Scales'!$H$8,"C",IF(H38<='LOS and Grade Scales'!$J$8,"D","F")))) -> A | K38: =MROUND(Stewardship!F25,1000) -> 224000
B39: Priority Weight: | D39: Cracking on paved shoulders | F39: 60 | G39: 35 | H39: =Stewardship!D26 -> 35 | I39: =IF(F39<='LOS and Grade Scales'!$D$8,"A",IF(F39<='LOS and Grade Scales'!$F$8, "B", IF(F39<='LOS and Grade Scales'!$H$8,"C",IF(F39<='LOS and Grade Scales'!$J$8,"D","F")))) -> F | J39: =IF(H39<='LOS and Grade Scales'!$D$8,"A",IF(H39<='LOS and Grade Scales'!$F$8, "B", IF(H39<='LOS and Grade Scales'!$H$8,"C",IF(H39<='LOS and Grade Scales'!$J$8,"D","F")))) -> D | K39: =MROUND(Stewardship!F26,1000) -> 6017000
B40: 0.13 | D40: Erosion on unpaved shoulders | F40: 2 | G40: 5 | H40: =Stewardship!D27 -> 5 | I40: =IF(F40<='LOS and Grade Scales'!$D$8,"A",IF(F40<='LOS and Grade Scales'!$F$8, "B", IF(F40<='LOS and Grade Scales'!$H$8,"C",IF(F40<='LOS and Grade Scales'!$J$8,"D","F")))) -> A | J40: =IF(H40<='LOS and Grade Scales'!$D$8,"A",IF(H40<='LOS and Grade Scales'!$F$8, "B", IF(H40<='LOS and Grade Scales'!$H$8,"C",IF(H40<='LOS and Grade Scales'!$J$8,"D","F")))) -> A | K40: =MROUND(Stewardship!F27,1000) -> 2842000
D41: Drains | F41: 33 | G41: 25 | H41: =Stewardship!D28 -> 6 | I41: =IF(F41<='LOS and Grade Scales'!$D$8,"A",IF(F41<='LOS and Grade Scales'!$F$8, "B", IF(F41<='LOS and Grade Scales'!$H$8,"C",IF(F41<='LOS and Grade Scales'!$J$8,"D","F")))) -> D | J41: =IF(H41<='LOS and Grade Scales'!$D$8,"A",IF(H41<='LOS and Grade Scales'!$F$8, "B", IF(H41<='LOS and Grade Scales'!$H$8,"C",IF(H41<='LOS and Grade Scales'!$J$8,"D","F")))) -> A | K41: =MROUND(Stewardship!F28,1000) -> 278000
B42: Ride / Comfort | C42: Available Budget for Ride / Comfort | E42: 0
C43: Baseline LOS Grade | E43: ='Ride-Comfort'!$H$5 -> B
C44: Estimated Cost | E44: =MROUND('Ride-Comfort'!$H$3,1000) -> 7455000
C45: Target LOS Grade | E45: ='Ride-Comfort'!$H$7 -> A
B46: Priority Weight: | C46: Features | D46: Potholes / raveling on paved shoulders | F46: 6 | G46: 5 | H46: ='Ride-Comfort'!D20 -> 4 | I46: =IF(F46<='LOS and Grade Scales'!$D$9,"A",IF(F46<='LOS and Grade Scales'!$F$9, "B", IF(F46<='LOS and Grade Scales'!$H$9,"C",IF(F46<='LOS and Grade Scales'!$J$9,"D","F")))) -> A | J46: =IF(H46<='LOS and Grade Scales'!$D$9,"A",IF(H46<='LOS and Grade Scales'!$F$9, "B", IF(H46<='LOS and Grade Scales'!$H$9,"C",IF(H46<='LOS and Grade Scales'!$J$9,"D","F")))) -> A | K46: =MROUND('Ride-Comfort'!F20,1000) -> 2114000
B47: 0.05 | D47: Emergency repair of “other” signs | F47: 4 | G47: 5 | H47: ='Ride-Comfort'!D21 -> 5 | I47: =IF(F47<='LOS and Grade Scales'!$D$9,"A",IF(F47<='LOS and Grade Scales'!$F$9, "B", IF(F47<='LOS and Grade Scales'!$H$9,"C",IF(F47<='LOS and Grade Scales'!$J$9,"D","F")))) -> A | J47: =IF(H47<='LOS and Grade Scales'!$D$9,"A",IF(H47<='LOS and Grade Scales'!$F$9, "B", IF(H47<='LOS and Grade Scales'!$H$9,"C",IF(H47<='LOS and Grade Scales'!$J$9,"D","F")))) -> A | K47: =MROUND('Ride-Comfort'!F21,1000) -> 843000
D48: Routine replacement of “other” signs | F48: 39 | G48: 20 | H48: ='Ride-Comfort'!D22 -> 19 | I48: =IF(F48<='LOS and Grade Scales'!$D$9,"A",IF(F48<='LOS and Grade Scales'!$F$9, "B", IF(F48<='LOS and Grade Scales'!$H$9,"C",IF(F48<='LOS and Grade Scales'!$J$9,"D","F")))) -> D | J48: =IF(H48<='LOS and Grade Scales'!$D$9,"A",IF(H48<='LOS and Grade Scales'!$F$9, "B", IF(H48<='LOS and Grade Scales'!$H$9,"C",IF(H48<='LOS and Grade Scales'!$J$9,"D","F")))) -> C | K48: =MROUND('Ride-Comfort'!F22,1000) -> 4497000
B49: Aesthetics | C49: Available Budget for Aesthetics | E49: 0
C50: Baseline LOS Grade | E50: =Aesthetics!$H$5 -> C
C51: Estimated Cost | E51: =MROUND(Aesthetics!$H$3,1000) -> 22857000
B52: Priority Weight: | C52: Target LOS Grade | E52: =Aesthetics!$H$7 -> A
B53: 0.03 | C53: Features | D53: Mowing | F53: 38 | G53: 40 | H53: =Aesthetics!D19 -> 0 | I53: =IF(F53<='LOS and Grade Scales'!$D$10,"A",IF(F53<='LOS and Grade Scales'!$E$10, "B", IF(F53<='LOS and Grade Scales'!$H$10,"C",IF(F53<='LOS and Grade Scales'!$J$10,"D","F")))) -> C | J53: =IF(H53<='LOS and Grade Scales'!$D$10,"A",IF(H53<='LOS and Grade Scales'!$E$10, "B", IF(H53<='LOS and Grade Scales'!$H$10,"C",IF(H53<='LOS and Grade Scales'!$J$10,"D","F")))) -> A | K53: =MROUND(Aesthetics!F19,1000) -> 3410000
D54: Litter | F54: 63 | G54: 45 | H54: =Aesthetics!D20 -> 43 | I54: =IF(F54<='LOS and Grade Scales'!$D$10,"A",IF(F54<='LOS and Grade Scales'!$E$10, "B", IF(F54<='LOS and Grade Scales'!$H$10,"C",IF(F54<='LOS and Grade Scales'!$J$10,"D","F")))) -> D | J54: =IF(H54<='LOS and Grade Scales'!$D$10,"A",IF(H54<='LOS and Grade Scales'!$E$10, "B", IF(H54<='LOS and Grade Scales'!$H$10,"C",IF(H54<='LOS and Grade Scales'!$J$10,"D","F")))) -> C | K54: =MROUND(Aesthetics!F20,1000) -> 19447000
B55: PROGRAM | D55: Total Available Budget | E55: 0
D56: Total Estimated Cost | E56: =SUM(E9,E20,E34,E44,E51) -> 118710000
D57: Targeted Program LOS | E57: ='Program Performance'!$H$11 -> B

Sheet LOS and Grade Scales
C3: Percent of Feature Inventory in Deficient Condition
B4: Level of Service | C4: A | E4: B | G4: C | I4: D | K4: F
B5: Maintenance Goal | C5: > | D5: <= | E5: > | F5: <= | G5: > | H5: <= | I5: > | J5: <= | K5: > | L5: <=
B6: Critical Safety | C6: 0 | D6: 2.5 | E6: 2.5 | F6: 5.5 | G6: 5.5 | H6: 9.5 | I6: 9.5 | J6: 15 | K6: 15 | L6: 100
B7: Safety/Mobility | C7: 0 | D7: 4.5 | E7: 4.5 | F7: 9.5 | G7: 9.5 | H7: 18.5 | I7: 18.5 | J7: 30 | K7: 30 | L7: 100
B8: Stewardship | C8: 0 | D8: 6.5 | E8: 6.5 | F8: 15.5 | G8: 15.5 | H8: 29.5 | I8: 29.5 | J8: 50 | K8: 50 | L8: 100
B9: Ride/Comfort | C9: 0 | D9: 7.5 | E9: 7.5 | F9: 18.5 | G9: 18.5 | H9: 35.5 | I9: 35.5 | J9: 60 | K9: 60 | L9: 100
B10: Aesthetics | C10: 0 | D10: 10.5 | E10: 10.5 | F10: 25.5 | G10: 25.5 | H10: 47.5 | I10: 47.5 | J10: 80 | K10: 80 | L10: 100
C12: Numeric Equivalent
B13: Letter Grade | C13: > | D13: <=
B14: A | C14: 3 | D14: 4
B15: B | C15: 2 | D15: 3
B16: C | C16: 1 | D16: 2
B17: D | C17: 0 | D17: 1
B18: F | C18: 0 | D18: 0

Sheet Program Performance
G4: Interpolation
C5: Goal | D5: Priority Weight | E5: Composite Deficiency Rate (% of inventory) | F5: Goal LOS Grade | G5: Grade Point | H5: Weighted Grade Point
C6: Critical Safety | D6: ='LOS Target Setting'!$B$16 -> 0.51 | E6: ='Critical Safety'!C7 -> 6.86 | F6: =IF(E6<='LOS and Grade Scales'!D6,"A",IF(E6<='LOS and Grade Scales'!F6, "B", IF(E6<='LOS and Grade Scales'!H6,"C",IF(E6<='LOS and Grade Scales'!J6,"D","F")))) -> C | G6: =IF(F6='LOS and Grade Scales'!B14,'LOS and Grade Scales'!C14+(('LOS and Grade Scales'!D6-E6)/('LOS and Grade Scales'!D6-'LOS and Grade Scales'!C6)),IF(F6='LOS and Grade Scales'!B15,'LOS and Grade Scales'!C15+(('LOS and Grade Scales'!F6-E6)/('LOS and Grade Scales'!F6-'LOS and Grade Scales'!E6)), IF(F6='LOS and Grade Scales'!B16, 'LOS and Grade Scales'!C16+(('LOS and Grade Scales'!H6-E6)/('LOS and Grade Scales'!H6-'LOS and Grade Scales'!G6)),IF(F6='LOS and Grade Scales'!B17, 'LOS and Grade Scales'!C17+(('LOS and Grade Scales'!J6-E6)/('LOS and Grade Scales'!J6-'LOS and Grade Scales'!I6)),0)))) -> 1.66 | H6: =D6*G6 -> 0.8466
C7: Safety/Mobility | D7: ='LOS Target Setting'!$B$30 -> 0.28 | E7: ='Safety-Mobility'!C7 -> 7.296666667 | F7: =IF(E7<='LOS and Grade Scales'!D7,"A",IF(E7<='LOS and Grade Scales'!F7, "B", IF(E7<='LOS and Grade Scales'!H7,"C",IF(E7<='LOS and Grade Scales'!J7,"D","F")))) -> B | G7: =IF(F7='LOS and Grade Scales'!B14,'LOS and Grade Scales'!C14+(('LOS and Grade Scales'!D7-E7)/('LOS and Grade Scales'!D7-'LOS and Grade Scales'!C7)),IF(F7='LOS and Grade Scales'!B15,'LOS and Grade Scales'!C15+(('LOS and Grade Scales'!F7-E7)/('LOS and Grade Scales'!F7-'LOS and Grade Scales'!E7)), IF(F7='LOS and Grade Scales'!B16, 'LOS and Grade Scales'!C16+(('LOS and Grade Scales'!H7-E7)/('LOS and Grade Scales'!H7-'LOS and Grade Scales'!G7)),IF(F7='LOS and Grade Scales'!B17,'LOS and Grade Scales'!C17+(('LOS and Grade Scales'!J7-E7)/('LOS and Grade Scales'!J7-'LOS and Grade Scales'!I7)),0)))) -> 2.440666667 | H7: =D7*G7 -> 0.6833866667
C8: Stewardship | D8: ='LOS Target Setting'!$B$40 -> 0.13 | E8: =Stewardship!C7 -> 5.536 | F8: =IF(E8<='LOS and Grade Scales'!D8,"A",IF(E8<='LOS and Grade Scales'!F8, "B", IF(E8<='LOS and Grade Scales'!H8,"C",IF(E8<='LOS and Grade Scales'!J8,"D","F")))) -> A | G8: =IF(F8='LOS and Grade Scales'!B14,'LOS and Grade Scales'!C14+(('LOS and Grade Scales'!D8-E8)/('LOS and Grade Scales'!D8-'LOS and Grade Scales'!C8)),IF(F8='LOS and Grade Scales'!B15,'LOS and Grade Scales'!C15+(('LOS and Grade Scales'!F8-E8)/('LOS and Grade Scales'!F8-'LOS and Grade Scales'!E8)), IF(F8='LOS and Grade Scales'!B16,'LOS and Grade Scales'!C16+(('LOS and Grade Scales'!H8-E8)/('LOS and Grade Scales'!H8-'LOS and Grade Scales'!G8)),IF(F8='LOS and Grade Scales'!B17, 'LOS and Grade Scales'!C17+(('LOS and Grade Scales'!J8-E8)/('LOS and Grade Scales'!J8-'LOS and Grade Scales'!I8)),0)))) -> 3.148307692 | H8: =D8*G8 -> 0.40928
C9: Ride/Comfort | D9: ='LOS Target Setting'!$B$47 -> 0.05 | E9: ='Ride-Comfort'!C7 -> 5.39 | F9: =IF(E9<='LOS and Grade Scales'!D9,"A",IF(E9<='LOS and Grade Scales'!F9, "B", IF(E9<='LOS and Grade Scales'!H9,"C",IF(E9<='LOS and Grade Scales'!J9,"D","F")))) -> A | G9: =IF(F9='LOS and Grade Scales'!B14,'LOS and Grade Scales'!C14+(('LOS and Grade Scales'!D9-E9)/('LOS and Grade Scales'!D9-'LOS and Grade Scales'!C9)),IF(F9='LOS and Grade Scales'!B15,'LOS and Grade Scales'!C15+(('LOS and Grade Scales'!F9-E9)/('LOS and Grade Scales'!F9-'LOS and Grade Scales'!E9)), IF(F9='LOS and Grade Scales'!B16, 'LOS and Grade Scales'!C16+(('LOS and Grade Scales'!H9-E9)/('LOS and Grade Scales'!H9-'LOS and Grade Scales'!G9)),IF(F9='LOS and Grade Scales'!B17, 'LOS and Grade Scales'!C17+(('LOS and Grade Scales'!J9-E9)/('LOS and Grade Scales'!J9-'LOS and Grade Scales'!I9)),0)))) -> 3.281333333 | H9: =D9*G9 -> 0.1640666667
C10: Aesthetics | D10: ='LOS Target Setting'!$B$53 -> 0.03 | E10: =Aesthetics!C7 -> 7.31 | F10: =IF(E10<='LOS and Grade Scales'!D10,"A",IF(E10<='LOS and Grade Scales'!F10, "B", IF(E10<='LOS and Grade Scales'!H10,"C",IF(E10<='LOS and Grade Scales'!J10,"D","F")))) -> A | G10: =IF(F10='LOS and Grade Scales'!B14,'LOS and Grade Scales'!C14+(('LOS and Grade Scales'!D10-E10)/('LOS and Grade Scales'!D10-'LOS and Grade Scales'!C10)),IF(F10='LOS and Grade Scales'!B15,'LOS and Grade Scales'!C15+(('LOS and Grade Scales'!F10-E10)/('LOS and Grade Scales'!F10-'LOS and Grade Scales'!E10)), IF(F10='LOS and Grade Scales'!B16,'LOS and Grade Scales'!C16+(('LOS and Grade Scales'!H10-E10)/('LOS and Grade Scales'!H10-'LOS and Grade Scales'!G10)),IF(F10='LOS and Grade Scales'!B17, 'LOS and Grade Scales'!C17+(('LOS and Grade Scales'!J10-E10)/('LOS and Grade Scales'!J10-'LOS and Grade Scales'!I10)),0)))) -> 3.303809524 | H10: =D10*G10 -> 0.09911428571
C11: Program-level Score | G11: =SUM(H6:H10) -> 2.202447619 | H11: =IF(G11<=0,"F",IF(G11<=1, "D", IF(G11<=2,"C",IF(G11<=3,"B","A")))) -> B

Sheet Critical Safety
A1: LOS Target Setting for CRITICAL SAFETY
A3: Budget = | C3: 0 | F3: Estimated Cost = | H3: =F31 -> 43217550.43
A5: Baseline composite deficiency rate = | C5: =G31 -> 5.79 | F5: Baseline LOS Grade = | H5: =IF(C5<='LOS and Grade Scales'!D6,"A",IF(C5<='LOS and Grade Scales'!F6, "B", IF(C5<='LOS and Grade Scales'!H6,"C",IF(C5<='LOS and Grade Scales'!J6,"D","F")))) -> C
A6: Target composite rate reduction = | C6: =I31 -> -1.07
A7: Target composite deficiency rate = | C7: =H31 -> 6.86 | F7: Target LOS Grade = | H7: =IF(C7<='LOS and Grade Scales'!D6,"A",IF(C7<='LOS and Grade Scales'!F6, "B", IF(C7<='LOS and Grade Scales'!H6,"C",IF(C7<='LOS and Grade Scales'!J6,"D","F")))) -> C
B9: FEATURE INPUTS | G9: MAINTENANCE OF STEADY STATE
A10: FEATURE | B10: Utility Weight | C10: Inventory | E10: Unit Cost | F10: Cycle Time (Years) | G10: Percent New Deficient Inventory Per Year | H10: Cost to Mitigate Deficiency in 1% of Inventory | I10: Cost to Maintain Baseline
D11: Inventory Unit
A12: Emergency repair of regulator / warning signs | B12: 0.42 | C12: 159004 | D12: ea | E12: 171.48 | F12: 20 | G12: =(100)/F12 -> 5 | H12: =(C12/100)*E12 -> 272660.0592 | I12: =G12*H12 -> 1363300.296
A13: Hazardous debris | B13: 0.24 | C13: 117740 | D13: CL | E13: 1120.5 | F13: 7 | G13: 14.28571429 | H13: 1319276.7 | I13: 18846810
A14: Protective barriers | B14: 0.13 | C14: 3704457 | D14: LF | E14: 34.36 | F14: 15 | G14: 6.666666667 | H14: 1272851.425 | I14: 8485676.168
A15: Centerline markings | B15: 0.09 | C15: 56799150 | D15: LF | E15: 0.15 | F15: 4 | G15: 25 | H15: 85198.725 | I15: 2129968.125
A16: Edgeline markings | B16: 0.07 | C16: 156417624 | D16: LF | E16: 0.15 | F16: 4 | G16: 25 | H16: 234626.436 | I16: 5865660.9
A17: Unpaved shoulder drop-off / buildup | B17: 0.03 | C17: 21619 | D17: mi | E17: 330 | F17: 4 | G17: 25 | H17: 71342.7 | I17: 1783567.5
A18: Paved shoulder drop off / build up | B18: 0.02 | C18: 21591 | D18: mi | E18: 7250 | F18: 15 | G18: 6.666666667 | H18: 1565347.5 | I18: 10435650
H19: Total | I19: =SUM(I12:I18) -> 48910632.99
B21: TARGET CALCULATIONS | G21: WEIGHTED DEFICIENCY RATES
A22: FEATURE | B22: Maximum Acceptable Deficiency Rate | C22: Baseline Deficiency Rate | D22: Target Deficiency Rate | E22: Target Rate Reduction | F22: Target Budget Allocation | G22: Weighted Baseline Deficiency Rate | H22: Weighted Target Deficiency Rate | I22: Weighted Rate Reduction
A24: Emergency repair of regulator / warning signs | B24: ='LOS Target Setting'!G11 -> 5 | C24: ='LOS Target Setting'!F11 -> 3 | D24: 5 | E24: =C24-D24 -> -2 | F24: =I12+E24*H12 -> 817980.1776 | G24: =C24*B12 -> 1.26 | H24: =D24*B12 -> 2.1 | I24: =E24*B12 -> -0.84
A25: Hazardous debris | B25: ='LOS Target Setting'!G12 -> 9 | C25: ='LOS Target Setting'!F12 -> 7 | D25: 9 | E25: =C25-D25 -> -2 | F25: 16208256.6 | G25: 1.68 | H25: 2.16 | I25: -0.48
A26: Protective barriers | B26: ='LOS Target Setting'!G13 -> 5 | C26: ='LOS Target Setting'!F13 -> 5 | D26: 5 | E26: 0 | F26: 8485676.168 | G26: 0.65 | H26: 0.65 | I26: 0
A27: Centerline markings | B27: ='LOS Target Setting'!G14 -> 6 | C27: ='LOS Target Setting'!F14 -> 6 | D27: 6 | E27: 0 | F27: 2129968.125 | G27: 0.54 | H27: 0.54 | I27: 0
A28: Edgeline markings | B28: ='LOS Target Setting'!G15 -> 8 | C28: ='LOS Target Setting'!F15 -> 7 | D28: 8 | E28: -1 | F28: 5631034.464 | G28: 0.49 | H28: 0.56 | I28: -0.07
A29: Unpaved shoulder drop-off / buildup | B29: ='LOS Target Setting'!G16 -> 25 | C29: ='LOS Target Setting'!F16 -> 37 | D29: 25 | E29: 12 | F29: 2639679.9 | G29: 1.11 | H29: 0.75 | I29: 0.36
A30: Paved shoulder drop off / build up | B30: ='LOS Target Setting'!G17 -> 5 | C30: ='LOS Target Setting'!F17 -> 3 | D30: 5 | E30: -2 | F30: 7304955 | G30: 0.06 | H30: 0.1 | I30: -0.04
E31: Total | F31: =SUM(F24:F30) -> 43217550.43 | G31: =SUM($G$24:$G$30) -> 5.79 | H31: =SUM($H$24:$H$30) -> 6.86 | I31: =SUM($I$24:$I$30) -> -1.07

Sheet Safety-Mobility
A1: LOS Target Setting for CRITICAL SAFETY
A3: Budget = | C3: 0 | F3: Estimated Cost = | H3: =F37 -> 31183945.88
A5: Baseline composite deficiency rate = | C5: =G37 -> 7.3 | F5: Baseline LOS Grade = | H5: =IF(C5<='LOS and Grade Scales'!D7,"A",IF(C5<='LOS and Grade Scales'!F7, "B", IF(C5<='LOS and Grade Scales'!H7,"C",IF(C5<='LOS and Grade Scales'!J7,"D","F")))) -> B
A6: Target composite rate reduction = | C6: =I37 -> 0.003333333333
A7: Target composite deficiency rate = | C7: =H37 -> 7.296666667 | F7: Target LOS Grade = | H7: =IF(C7<='LOS and Grade Scales'!D7,"A",IF(C7<='LOS and Grade Scales'!F7, "B", IF(C7<='LOS and Grade Scales'!H7,"C",IF(C7<='LOS and Grade Scales'!J7,"D","F")))) -> B
B9: FEATURE INPUTS | G9: MAINTENANCE OF STEADY STATE
A10: FEATURE | B10: Utility Weight | C10: Inventory | E10: Unit Cost | F10: Cycle Time (Years) | G10: Percent New Deficient Inventory Per Year | H10: Cost to Mitigate Deficiency in 1% of Inventory | I10: Cost to Maintain Baseline
D11: Inventory Unit
A12: Woody vegetation control for vision | B12: 0.31 | C12: 39117 | D12: intersect | E12: 258.35 | F12: 3 | G12: =(100)/F12 -> 33.33333333 | H12: =(C12/100)*E12 -> 101058.7695 | I12: =G12*H12 -> 3368625.65
A13: Mowing for vision | B13: 0.2 | C13: 39117 | D13: intersect | E13: 83.41 | F13: 1 | G13: 100 | H13: 32627.4897 | I13: 3262748.97
A14: Special pavement markings | B14: 0.14 | C14: 48910 | D14: ea | E14: 169.6 | F14: 2 | G14: 50 | H14: 82951.36 | I14: 4147568
A15: Woody vegetation (clear zone) | B15: 0.1 | C15: 29625 | D15: LM | E15: 1033.4 | F15: 6 | G15: 16.66666667 | H15: 306144.75 | I15: 5102412.5
A16: Culverts | B16: 0.08 | C16: 36266 | D16: ea | E16: 226 | F16: 10 | G16: 10 | H16: 81961.16 | I16: 819611.6
A17: Storm sewer | B17: 0.06 | C17: 48926 | D17: ea | E17: 115 | F17: 5 | G17: 20 | H17: 56264.9 | I17: 1125298
A18: Cross slope on unpaved shoulders | B18: 0.05 | C18: 21619 | D18: mi | E18: 2000 | F18: 12 | G18: 8.333333333 | H18: 432380 | I18: 3603166.667
A19: Delineators | B19: 0.03 | C19: 155793 | D19: ea | E19: 52 | F19: 8 | G19: =(100)/F19 -> 12.5 | H19: =(C19/100)*E19 -> 81012.36 | I19: =G19*H19 -> 1012654.5
A20: Routine replacement of regulatory / warning signs | B20: 0.02 | C20: 159004 | D20: ea | E20: 121.9 | F20: 8 | G20: 12.5 | H20: 193825.876 | I20: 2422823.45
A21: Fences | B21: 0.01 | C21: 14169357 | D21: LF | E21: 6.28 | F21: 30 | G21: 3.333333333 | H21: 889835.6196 | I21: 2966118.732
H22: Total | I22: =SUM(I12:I21) -> 27831028.07
B24: TARGET CALCULATIONS | G24: WEIGHTED DEFICIENCY RATES
A25: FEATURE | B25: Maximum Acceptable Deficiency Rate | C25: Baseline Deficiency Rate | D25: Target Deficiency Rate | E25: Target Rate Reduction | F25: Target Budget Allocation | G25: Weighted Baseline Deficiency Rate | H25: Weighted Target Deficiency Rate | I25: Weighted Rate Reduction
A27: Woody vegetation control for vision | B27: ='LOS Target Setting'!G22 -> 5 | C27: ='LOS Target Setting'!F22 -> 1 | D27: 5 | E27: =C27-D27 -> -4 | F27: =I12+E27*H12 -> 2964390.572 | G27: =C27*B12 -> 0.31 | H27: =D27*B12 -> 1.55 | I27: =E27*B12 -> -1.24
A28: Mowing for vision | B28: ='LOS Target Setting'!G23 -> 5 | C28: ='LOS Target Setting'!F23 -> 1 | D28: 5 | E28: -4 | F28: 3132239.011 | G28: =C28*B13 -> 0.2 | H28: 1 | I28: -0.8
A29: Special pavement markings | B29: ='LOS Target Setting'!G24 -> 5 | C29: ='LOS Target Setting'!F24 -> 10 | D29: 5 | E29: 5 | F29: 4562324.8 | G29: 1.4 | H29: 0.7 | I29: 0.7
A30: Woody vegetation (clear zone) | B30: ='LOS Target Setting'!G25 -> 5 | C30: ='LOS Target Setting'!F25 -> 2 | D30: 5 | E30: -3 | F30: 4183978.25 | G30: 0.2 | H30: 0.5 | I30: -0.3
A31: Culverts | B31: ='LOS Target Setting'!G26 -> 15 | C31: ='LOS Target Setting'!F26 -> 22 | D31: 15 | E31: 7 | F31: 1393339.72 | G31: 1.76 | H31: 1.2 | I31: 0.56
A32: Storm sewer | B32: ='LOS Target Setting'!G27 -> 15 | C32: ='LOS Target Setting'!F27 -> 17 | D32: 15 | E32: 2 | F32: 1237827.8 | G32: 1.02 | H32: 0.9 | I32: 0.12
A33: Cross slope on unpaved shoulders | B33: ='LOS Target Setting'!G28 -> 15 | C33: ='LOS Target Setting'!F28 -> 27 | D33: 15 | E33: 12 | F33: 8791726.667 | G33: 1.35 | H33: 0.75 | I33: 0.6
A34: Delineators | B34: ='LOS Target Setting'!G29 -> 15 | C34: ='LOS Target Setting'!F29 -> 25 | D34: 15 | E34: =C34-D34 -> 10 | F34: =I19+E34*H19 -> 1822778.1 | G34: =C34*B19 -> 0.75 | H34: =D34*B19 -> 0.45 | I34: =E34*B19 -> 0.3
A35: Routine replacement of regulatory / warning signs | B35: ='LOS Target Setting'!G30 -> 10 | C35: ='LOS Target Setting'!F30 -> 15 | D35: 10 | E35: 5 | F35: 3391952.83 | G35: 0.3 | H35: 0.2 | I35: 0.1
A36: Fences | B36: ='LOS Target Setting'!G31 -> 5 | C36: ='LOS Target Setting'!F31 -> 1 | D36: 4.666666667 | E36: -3.666666667 | F36: -296611.8732 | G36: 0.01 | H36: 0.04666666667 | I36: -0.03666666667
E37: Total | F37: =SUM(F27:F36) -> 31183945.88 | G37: =SUM($G$27:$G$36) -> 7.3 | H37: =SUM($H$27:$H$36) -> 7.296666667 | I37: =SUM($I$27:$I$36) -> 0.003333333333

Sheet Stewardship
A1: LOS Target Setting for CRITICAL SAFETY
A3: Budget = | C3: 0 | F3: Estimated Cost = | H3: =F29 -> 13995777.88
A5: Baseline composite deficiency rate = | C5: =G29 -> 13.142 | F5: Baseline LOS Grade = | H5: =IF(C5<='LOS and Grade Scales'!D8,"A",IF(C5<='LOS and Grade Scales'!F8, "B", IF(C5<='LOS and Grade Scales'!H8,"C",IF(C5<='LOS and Grade Scales'!J8,"D","F")))) -> B
A6: Target composite rate reduction = | C6: =I29 -> 7.606
A7: Target composite deficiency rate = | C7: =H29 -> 5.536 | F7: Target LOS Grade = | H7: =IF(C7<='LOS and Grade Scales'!D8,"A",IF(C7<='LOS and Grade Scales'!F8, "B", IF(C7<='LOS and Grade Scales'!H8,"C",IF(C7<='LOS and Grade Scales'!J8,"D","F")))) -> A
B9: FEATURE INPUTS | G9: MAINTENANCE OF STEADY STATE
A10: FEATURE | B10: Utility Weight | C10: Inventory | E10: Unit Cost | F10: Cycle Time (Years) | G10: Percent New Deficient Inventory Per Year | H10: Cost to Mitigate Deficiency in 1% of Inventory | I10: Cost to Maintain Baseline
D11: Inventory Unit
A12: Ditches | B12: 0.46 | C12: 18236.48 | D12: mi | E12: 8000 | F12: 20 | G12: =(100)/F12 -> 5 | H12: =(C12/100)*E12 -> 1458918.4 | I12: =G12*H12 -> 7294592
A13: Curb and gutter | B13: 0.25 | C13: 3396.91 | D13: mi | E13: 141 | F13: 2 | G13: 50 | H13: 4789.6431 | I13: 239482.155
A14: Flumes | B14: 0.128 | C14: 11631 | D14: ea | E14: 37.35 | F14: 8 | G14: 12.5 | H14: 4344.1785 | I14: 54302.23125
A15: Cracking on paved shoulders | B15: 0.08 | C15: 21591 | D15: mi | E15: 880 | F15: 15 | G15: 6.666666667 | H15: 190000.8 | I15: 1266672
A16: Erosion on unpaved shoulders | B16: 0.056 | C16: 216190 | D16: mi | E16: 116.47 | F16: 7 | G16: 14.28571429 | H16: 251796.493 | I16: 3597092.757
A17: Drains | B17: 0.026 | C17: 33424 | D17: ea | E17: 16.01 | F17: 4 | G17: 25 | H17: 5351.1824 | I17: 133779.56
H18: Total | I18: =SUM(I12:I17) -> 12585920.7
B20: TARGET CALCULATIONS | G20: WEIGHTED DEFICIENCY RATES
A21: FEATURE | B21: Maximum Acceptable Deficiency Rate | C21: Baseline Deficiency Rate | D21: Target Deficiency Rate | E21: Target Rate Reduction | F21: Target Budget Allocation | G21: Weighted Baseline Deficiency Rate | H21: Weighted Target Deficiency Rate | I21: Weighted Rate Reduction
A23: Ditches | B23: ='LOS Target Setting'!G36 -> 5 | C23: ='LOS Target Setting'!F36 -> 3 | D23: 5 | E23: =C23-D23 -> -2 | F23: =I12+E23*H12 -> 4376755.2 | G23: =C23*B12 -> 1.38 | H23: =D23*B12 -> 2.3 | I23: =E23*B12 -> -0.92
A24: Curb and gutter | B24: ='LOS Target Setting'!G37 -> 5 | C24: ='LOS Target Setting'!F37 -> 4 | D24: 0 | E24: 4 | F24: 258640.7274 | G24: =C24*B13 -> 1 | H24: =D24*B13 -> 0 | I24: =E24*B13 -> 1
A25: Flumes | B25: ='LOS Target Setting'!G38 -> 25 | C25: ='LOS Target Setting'!F38 -> 39 | D25: 0 | E25: 39 | F25: 223725.1927 | G25: =C25*B14 -> 4.992 | H25: =D25*B14 -> 0 | I25: =E25*B14 -> 4.992
A26: Cracking on paved shoulders | B26: ='LOS Target Setting'!G39 -> 35 | C26: ='LOS Target Setting'!F39 -> 60 | D26: 35 | E26: 25 | F26: 6016692 | G26: =C26*B15 -> 4.8 | H26: =D26*B15 -> 2.8 | I26: =E26*B15 -> 2
A27: Erosion on unpaved shoulders | B27: ='LOS Target Setting'!G40 -> 5 | C27: ='LOS Target Setting'!F40 -> 2 | D27: 5 | E27: -3 | F27: 2841703.278 | G27: =C27*B16 -> 0.112 | H27: =D27*B16 -> 0.28 | I27: =E27*B16 -> -0.168
A28: Drains | B28: ='LOS Target Setting'!G41 -> 25 | C28: ='LOS Target Setting'!F41 -> 33 | D28: 6 | E28: 27 | F28: 278261.4848 | G28: =C28*B17 -> 0.858 | H28: =D28*B17 -> 0.156 | I28: =E28*B17 -> 0.702
E29: Total | F29: =SUM(F23:F28) -> 13995777.88 | G29: =SUM($G$23:$G$28) -> 13.142 | H29: =SUM($H$23:$H$28) -> 5.536 | I29: =SUM($I$23:$I$28) -> 7.606

Sheet Ride-Comfort
A1: LOS Target Setting for CRITICAL SAFETY
A3: Budget = | C3: 0 | F3: Estimated Cost = | H3: =F23 -> 7454967.324
A5: Baseline composite deficiency rate = | C5: =G23 -> 8.26 | F5: Baseline LOS Grade = | H5: =IF(C5<='LOS and Grade Scales'!D9,"A",IF(C5<='LOS and Grade Scales'!F9, "B", IF(C5<='LOS and Grade Scales'!H9,"C",IF(C5<='LOS and Grade Scales'!J9,"D","F")))) -> B
A6: Target composite rate reduction = | C6: =I23 -> 2.87
A7: Target composite deficiency rate = | C7: =H23 -> 5.39 | F7: Target LOS Grade = | H7: =IF(C7<='LOS and Grade Scales'!D9,"A",IF(C7<='LOS and Grade Scales'!E9, "B", IF(C7<='LOS and Grade Scales'!H9,"C",IF(C7<='LOS and Grade Scales'!J9,"D","F")))) -> A
B9: FEATURE INPUTS | G9: MAINTENANCE OF STEADY STATE
A10: FEATURE | B10: Utility Weight | C10: Inventory | E10: Unit Cost | F10: Cycle Time (Years) | G10: Percent New Deficient Inventory Per Year | H10: Cost to Mitigate Deficiency in 1% of Inventory | I10: Cost to Maintain Baseline
D11: Inventory Unit
A12: Potholes / raveling on paved shoulders | B12: 0.73 | C12: 21591 | E12: 1130 | F12: 15 | G12: =(100)/F12 -> 6.666666667 | H12: =(C12/100)*E12 -> 243978.3 | I12: =G12*H12 -> 1626522
A13: Emergency repair of “other” signs | B13: 0.19 | C13: 122970 | E13: 171.48 | F13: 20 | G13: =(100)/F13 -> 5 | H13: =(C13/100)*E13 -> 210868.956 | I13: =G13*H13 -> 1054344.78
A14: Routine replacement of “other” signs | B14: 0.08 | C14: 122970 | E14: 121.9 | F14: 10 | G14: =(100)/F14 -> 10 | H14: =(C14/100)*E14 -> 149900.43 | I14: =G14*H14 -> 1499004.3
H15: Total | I15: =SUM(I12:I14) -> 4179871.08
B17: TARGET CALCULATIONS | G17: WEIGHTED DEFICIENCY RATES
A18: FEATURE | B18: Maximum Acceptable Deficiency Rate | C18: Baseline Deficiency Rate | D18: Target Deficiency Rate | E18: Target Rate Reduction | F18: Target Budget Allocation | G18: Weighted Baseline Deficiency Rate | H18: Weighted Target Deficiency Rate | I18: Weighted Rate Reduction
A20: Potholes / raveling on paved shoulders | B20: ='LOS Target Setting'!G46 -> 5 | C20: ='LOS Target Setting'!F46 -> 6 | D20: 4 | E20: =C20-D20 -> 2 | F20: =I12+E20*H12 -> 2114478.6 | G20: =C20*B12 -> 4.38 | H20: =D20*B12 -> 2.92 | I20: =E20*B12 -> 1.46
A21: Emergency repair of “other” signs | B21: ='LOS Target Setting'!G47 -> 5 | C21: ='LOS Target Setting'!F47 -> 4 | D21: 5 | E21: =C21-D21 -> -1 | F21: =I13+E21*H13 -> 843475.824 | G21: =C21*B13 -> 0.76 | H21: =D21*B13 -> 0.95 | I21: =E21*B13 -> -0.19
A22: Routine replacement of “other” signs | B22: ='LOS Target Setting'!G48 -> 20 | C22: ='LOS Target Setting'!F48 -> 39 | D22: 19 | E22: =C22-D22 -> 20 | F22: =I14+E22*H14 -> 4497012.9 | G22: =C22*B14 -> 3.12 | H22: =D22*B14 -> 1.52 | I22: =E22*B14 -> 1.6
E23: Total | F23: =SUM(F20:F22) -> 7454967.324 | G23: =SUM($G$20:$G$22) -> 8.26 | H23: =SUM($H$20:$H$22) -> 5.39 | I23: =SUM($I$20:$I$22) -> 2.87

Sheet Aesthetics
A1: LOS Target Setting for CRITICAL SAFETY
A3: Budget = | C3: 0 | F3: Estimated Cost = | H3: =F21 -> 22856925.82
A5: Baseline composite deficiency rate = | C5: =G21 -> 42.25 | F5: Baseline LOS Grade = | H5: =IF(C5<='LOS and Grade Scales'!D10,"A",IF(C5<='LOS and Grade Scales'!E10, "B", IF(C5<='LOS and Grade Scales'!H10,"C",IF(C5<='LOS and Grade Scales'!J10,"D","F")))) -> C
A6: Target composite rate reduction = | C6: =I21 -> 34.94
A7: Target composite deficiency rate = | C7: =H21 -> 7.31 | F7: Target LOS Grade = | H7: =IF(C7<='LOS and Grade Scales'!D10,"A",IF(C7<='LOS and Grade Scales'!E10, "B", IF(C7<='LOS and Grade Scales'!H10,"C",IF(C7<='LOS and Grade Scales'!J10,"D","F")))) -> A
B9: FEATURE INPUTS | G9: MAINTENANCE OF STEADY STATE
A10: FEATURE | B10: Utility Weight | C10: Inventory | E10: Unit Cost | F10: Cycle Time (Years) | G10: Percent New Deficient Inventory Per Year | H10: Cost to Mitigate Deficiency in 1% of Inventory | I10: Cost to Maintain Baseline
D11: Inventory Unit
A12: Mowing | B12: 0.83 | C12: 29625 | E12: 83.41 | F12: 1 | G12: =(100)/F12 -> 100 | H12: =(C12/100)*E12 -> 24710.2125 | I12: =G12*H12 -> 2471021.25
A13: Litter | B13: 0.17 | C13: 29625 | E13: 547.03 | F13: 1 | G13: =(100)/F13 -> 100 | H13: =(C13/100)*E13 -> 162057.6375 | I13: =G13*H13 -> 16205763.75
H14: Total | I14: =SUM(I12:I13) -> 18676785
B16: TARGET CALCULATIONS | G16: WEIGHTED DEFICIENCY RATES
A17: FEATURE | B17: Maximum Acceptable Deficiency Rate | C17: Baseline Deficiency Rate | D17: Target Deficiency Rate | E17: Target Rate Reduction | F17: Target Budget Allocation | G17: Weighted Baseline Deficiency Rate | H17: Weighted Target Deficiency Rate | I17: Weighted Rate Reduction
A19: Mowing | B19: ='LOS Target Setting'!G53 -> 40 | C19: ='LOS Target Setting'!F53 -> 38 | D19: 0 | E19: =C19-D19 -> 38 | F19: =I12+E19*H12 -> 3410009.325 | G19: =C19*B12 -> 31.54 | H19: =D19*B12 -> 0 | I19: =E19*B12 -> 31.54
A20: Litter | B20: ='LOS Target Setting'!G54 -> 45 | C20: ='LOS Target Setting'!F54 -> 63 | D20: 43 | E20: =C20-D20 -> 20 | F20: =I13+E20*H13 -> 19446916.5 | G20: =C20*B13 -> 10.71 | H20: =D20*B13 -> 7.31 | I20: =E20*B13 -> 3.4
E21: Total | F21: =SUM(F19:F20) -> 22856925.82 | G21: =SUM($G$19:$G$20) -> 42.25 | H21: =SUM($H$19:$H$20) -> 7.31 | I21: =SUM($I$19:$I$20) -> 34.94
